[Event "7th Uppsala Young Champions"]
[Site "Uppsala"]
[Date "2020.10.26"]
[Round "6.14"]
[White "Ostlund, Joar"]
[Black "Nilsson, Joakim"]
[Result "0-1"]
[ECO "D53"]
[WhiteElo "2106"]
[BlackElo "2224"]
[Annotator "NA"]
[PlyCount "86"]
[EventDate "2020.10.23"]
[EventType "swiss"]
[EventCountry "SWE"]
[SourceTitle "playchess.com"]
[Source "ChessBase"]
[SourceQuality "1"]
[TimeControl "5400+30"]

{[%evp 9,67,9,24,32767,32767,32767,32767,33,32767,32767,32767,9,32,21,55,45,40,45,41,42,61,68,87,86,84,74,91,84,84,32767,32767,32767,32767,32767,32767,32767,32767,32767,32767,32767,32767,116,134,66,120,110,114,114,99,108,32767,123,189,144,258,227,295,308,32767,207]} 1. d4 {[%emt 0:00:00]} d5 {[%emt 0:00:00]} 2. Nf3 {[%emt 0:00:00]} Nf6 {[%emt 0:00:00]} 3. c4 {[%emt 0:00:00]} e6 {[%emt 0:00:00]} 4. Nc3 {[%emt 0:00:00]} Be7 {[%emt 0:00:00]} 5. Bf4 {[%emt 0:00:13]} O-O {[%emt 0:01:05]} 6. e3 {[%emt 0:00:17]} b6 {[%emt 0:03:42]} 7. Bd3 {[%emt 0:04:09]} dxc4 {[%emt 0:00:39]} 8. Bxc4 {[%emt 0:00:12]} Bb7 {[%emt 0:00:08]} 9. O-O {[%emt 0:01:02]} Bd6 {[%emt 0:03:15]} 10. Bg5 {[%emt 0:06:18]} Be7 {[%emt 0:09:22]} 11. Qe2 {[%emt 0:02:58]} Ne4 {[%emt 0:02:23] D53: Queen's Gambit Declined: 4 Bg5 Be7: Early deviations.} 12. Bxe7 {[%emt 0:10:05]} Qxe7 {[%emt 0:00:02]} 13. Rac1 {[%emt 0:00:50]} Nxc3 {[%emt 0:07:17]} 14. Rxc3 {[%emt 0:00:17] [#]} Nd7 $146 {[%emt 0:00:17]} ({Predecessor:} 14... c6 15. Bd3 Nd7 16. Be4 Rac8 17. Qc2 Nf6 18. Bxc6 Bxc6 19. Rxc6 Rxc6 20. Qxc6 Qb4 21. Qc2 Nd5 22. a3 Qd6 23. Rc1 Rd8 24. g3 f5 25. Ne5 h6 26. Qe2 Nf6 27. Qa6 {1-0 (26) Kozul,Z (2593)-Cassidy,J Kallithea 2008}) 15. Bb5 {[%emt 0:02:16]} c5 {[%emt 0:06:45]} 16. Bxd7 {[%emt 0:03:56]} Qxd7 {[%emt 0:00:05]} 17. dxc5 {[%emt 0:00:10]} bxc5 {[%emt 0:00:11]} 18. Rxc5 {[%emt 0:00:19]} Rac8 {[%emt 0:00:24]} 19. Rfc1 {[%emt 0:16:49]} Rxc5 {[%emt 0:00:51]} 20. Rxc5 {[%emt 0:00:05]} Qa4 {[%emt 0:04:58]} 21. a3 {[%emt 0:05:52]} Rd8 {[%emt 0:02:27]} 22. h3 {[%emt 0:02:04]} h6 {[%emt 0:05:16]} 23. Rc7 {[%emt 0:04:07]} Be4 {[%emt 0:04:18]} 24. Nd4 {[%emt 0:06:45]} Qa5 {[%emt 0:03:40]} 25. Rc3 {[%emt 0:02:08]} Qb6 {[%emt 0:03:45] [#]} 26. Nb3 {[%emt 0:07:10]} (26. b4 $1 $16) 26... Qd6 {[%emt 0:02:03]} ({Better is} 26... Bg6 $14) 27. Nc5 {[%emt 0:01:04]} Bg6 {[%emt 0:06:09]} 28. b4 {[%emt 0:02:26]} Qe5 {[%emt 0:00:34]} 29. Rc1 {[%emt 0:00:34]} Bh5 {[%emt 0:02:09]} 30. Qc2 {[%emt 0:04:55]} Bg6 {[%emt 0:01:30] [#]} (30... Kh8 $16 31. g4 Bg6) 31. Qa4 $1 {[%emt 0:01:22]} Qd5 {[%emt 0:05:44]} (31... Qb2 $16 32. Rf1 Kh7 33. Qxa7 Qc3) 32. Qxa7 {[%emt 0:07:24]} Qd2 {[%emt 0:02:48]} 33. Rf1 {[%emt 0:01:20]} Bh5 {[%emt 0:02:07]} 34. Ne4 $18 {[%emt 0:01:36]} (34. g4 $142) 34... Qb2 {[%emt 0:00:33]} 35. Qa5 {[%emt 0:02:34]} Rd5 {[%emt 0:00:21]} 36. Qa4 {[%emt 0:01:49]} Kh7 {[%emt 0:03:27]} 37. Nc5 {[%emt 0:00:43]} Rg5 {[%emt 0:04:17]} 38. Nd3 {[%emt 0:02:38]} Bf3 {[%emt 0:02:38]} 39. Ne1 {[%emt 0:01:13]} Qe2 {[%emt 0:05:35]} 40. h4 {[%emt 0:01:44]} Rg4 {[%emt 0:01:30]} 41. g3 {[%emt 0:00:24]} Be4 {[%emt 0:00:34]} 42. Qe8 {[%emt 0:00:41]} Rxh4 {[%emt 0:00:53]} 43. Ng2 {[%emt 0:00:30]} Rh1+ {[%emt 0:00:12]} 0-1

[Event "7th Uppsala Young Champions"]
[Site "Uppsala"]
[Date "2020.10.26"]
[Round "6.19"]
[White "Grahn, Vidar"]
[Black "Buchert, Matthaus"]
[Result "1-0"]
[ECO "B33"]
[WhiteElo "1864"]
[BlackElo "1427"]
[Annotator "NA RC"]
[PlyCount "73"]
[EventDate "2020.10.23"]
[EventType "swiss"]
[EventCountry "SWE"]
[SourceTitle "playchess.com"]
[Source "ChessBase"]
[SourceQuality "1"]
[TimeControl "5400+30"]

1. e4 {[%emt 0:01:02]} c5 {[%emt 0:00:00]} 2. Nf3 {[%emt 0:00:07]} Nc6 {[%emt 0:00:00]} 3. d4 {[%emt 0:00:09]} cxd4 {[%emt 0:00:00]} 4. Nxd4 {[%emt 0:00:05]} Nf6 {[%emt 0:00:00]} 5. Nc3 {[%emt 0:00:03]} e5 {[%emt 0:00:02]} 6. Ndb5 {[%emt 0:00:08]} d6 {[%emt 0:00:05]} 7. Bg5 {[%emt 0:00:19]} a6 {[%emt 0:00:10]} 8. Na3 {[%emt 0:00:16]} b5 {[%emt 0:00:10]} 9. Nd5 {[%emt 0:00:11]} Be7 {[%emt 0:00:04]} 10. Bxf6 {[%emt 0:00:09]} Bxf6 {[%emt 0:00:06]} 11. c3 {[%emt 0:00:05]} O-O {[%emt 0:00:07]} 12. Nc2 {[%emt 0:00:02]} Rb8 {[%emt 0:00:12]} 13. h4 {[%emt 0:00:28]} g6 {[%emt 0:14:26]} 14. g3 {[%emt 0:02:21] B33: Sicilian: Pelikan and Sveshnikov Variations.} Bg7 {[%emt 0:28:04]} 15. h5 {[%emt 0:00:17]} Ne7 {[%emt 0:00:39]} 16. Nce3 {[%emt 0:00:35]} Nxd5 {[%emt 0:02:42]} 17. Nxd5 {[%emt 0:00:29]} Bb7 {[%emt 0:01:54] [#]} 18. hxg6 $146 {[%emt 0:05:37]} ({Predecessor:} 18. Be2 Bf6 19. Qd3 Bg5 20. Rd1 Rc8 21. Bf3 Rc5 22. Ne3 Rc6 23. Nd5 Rc5 24. Ne3 Rc6 25. Nd5 Rc5 {½-½ (25) Mueller,G (2575)-Moll,R (2603) GER email 2015}) 18... fxg6 {[%emt 0:08:43]} 19. Bh3 {[%emt 0:03:17]} Qg5 {[%emt 0:04:21]} 20. Be6+ {[%emt 0:08:04]} Kh8 {[%emt 0:00:49]} 21. Qd3 {[%emt 0:01:22]} Rbe8 {[%emt 0:15:49]} 22. Bd7 {[%emt 0:08:04]} Rd8 {[%emt 0:01:48]} 23. Bh3 {[%emt 0:00:39]} Bh6 {[%emt 0:07:26]} 24. Ke2 {[%emt 0:01:52]} Bxd5 {[%emt 0:04:55]} 25. exd5 {[%emt 0:03:09]} Rf6 {[%emt 0:03:03]} 26. Be6 $19 {[%emt 0:03:41]} (26. Bg2 $15) 26... Rdf8 {[%emt 0:01:19]} 27. Rh2 {[%emt 0:01:51]} Rf3 {[%emt 0:01:37]} 28. Qc2 {[%emt 0:03:18]} Re3+ {[%emt 0:01:44]} 29. Kd1 {[%emt 0:00:33]} Rff3 {[%emt 0:01:51]} 30. fxe3 {[%emt 0:01:56]} Rf1+ {[%emt 0:00:18]} 31. Ke2 {[%emt 0:00:12]} Rxa1 {[%emt 0:00:16]} 32. Qe4 {[%emt 0:03:21]} Rxa2 {[%emt 0:02:17]} 33. Kd3 {[%emt 0:01:18]} a5 {[%emt 0:00:57]} 34. Qf3 {[%emt 0:01:17]} b4 {[%emt 0:00:32]} 35. Rxh6 {[%emt 0:01:17]} Qd8 {[%emt 0:00:31]} 36. Qf7 {[%emt 0:00:50]} Qg8 {[%emt 0:00:28]} 37. Qxg8# {[%emt 0:00:10]} 1-0

[Event "7th Uppsala Young Champions"]
[Site "Uppsala"]
[Date "2020.10.27"]
[Round "7.6"]
[White "Heimisson, Hilmir Freyr"]
[Black "Falkevall, Axel"]
[Result "0-1"]
[ECO "A14"]
[WhiteElo "2352"]
[BlackElo "2121"]
[Annotator "ChessBase"]
[PlyCount "122"]
[EventDate "2020.10.23"]
[EventType "swiss"]
[EventCountry "SWE"]
[SourceTitle "playchess.com"]
[Source "ChessBase"]
[SourceQuality "1"]
[TimeControl "5400+30"]

1. Nf3 {[%emt 0:00:55]} Nf6 {[%emt 0:00:00]} 2. c4 {[%emt 0:00:17]} e6 {[%emt 0:00:00]} 3. g3 {[%emt 0:01:33]} d5 {[%emt 0:00:31]} 4. b3 {[%emt 0:00:33]} c5 {[%emt 0:02:43]} 5. Bg2 {[%emt 0:01:19]} Nc6 {[%emt 0:00:48]} 6. O-O {[%emt 0:00:26]} Be7 {[%emt 0:01:48]} 7. e3 {[%emt 0:05:36]} O-O {[%emt 0:01:58]} 8. Bb2 {[%emt 0:04:14]} b6 {[%emt 0:04:47]} 9. Qe2 {[%emt 0:05:15]} Bb7 {[%emt 0:03:33]} 10. d3 {[%emt 0:10:37]} Rc8 {[%emt 0:05:44]} 11. Rd1 {[%emt 0:03:58]} Qc7 {[%emt 0:02:51]} 12. e4 {[%emt 0:08:22]} d4 {[%emt 0:06:26]} 13. Nbd2 {[%emt 0:03:06]} e5 {[%emt 0:03:34]} 14. Rf1 {[%emt 0:10:54]} Rce8 {[%emt 0:06:33]} 15. Rae1 {[%emt 0:00:16]} g6 {[%emt 0:09:22]} 16. Nh4 {[%emt 0:04:25]} Bc8 {[%emt 0:04:52]} 17. Bc1 {[%emt 0:00:35]} Bg4 {[%emt 0:04:40]} 18. Ndf3 {[%emt 0:02:11]} Kg7 {[%emt 0:04:14]} 19. Qd2 {[%emt 0:09:52]} Ng8 {[%emt 0:03:45]} 20. h3 {[%emt 0:01:14]} Bd7 {[%emt 0:01:03]} 21. Ng5 {[%emt 0:05:19]} h6 {[%emt 0:02:16]} 22. Ngf3 {[%emt 0:00:12]} f5 {[%emt 0:07:34]} 23. exf5 {[%emt 0:04:35]} gxf5 {[%emt 0:00:21]} 24. Re2 {[%emt 0:01:14]} Bf6 {[%emt 0:02:30]} 25. Rfe1 {[%emt 0:00:05]} Re7 {[%emt 0:02:17]} 26. Bh1 {[%emt 0:04:23]} Rfe8 {[%emt 0:01:51]} 27. Qd1 {[%emt 0:04:56]} Qd8 {[%emt 0:05:09]} 28. Ng2 {[%emt 0:02:39]} e4 {[%emt 0:03:24]} 29. Nfh4 {[%emt 0:00:17]} Nb4 {[%emt 0:01:16]} 30. Nf4 {[%emt 0:01:33]} Bxh4 {[%emt 0:00:52]} 31. gxh4 {[%emt 0:00:20]} Kh7 {[%emt 0:02:37]} 32. dxe4 {[%emt 0:00:57]} Rg7+ {[%emt 0:00:33]} 33. Kh2 {[%emt 0:00:20]} Qxh4 {[%emt 0:00:42]} 34. e5 {[%emt 0:01:52]} d3 {[%emt 0:02:54]} 35. Nxd3 {[%emt 0:01:08]} Nxd3 {[%emt 0:00:35]} 36. Qxd3 {[%emt 0:00:04]} Rxe5 {[%emt 0:00:40]} 37. Bd5 {[%emt 0:01:27]} Nf6 {[%emt 0:00:41]} 38. Rg1 {[%emt 0:00:36]} Ng4+ {[%emt 0:00:56]} 39. Rxg4 {[%emt 0:00:09]} Rxg4 {[%emt 0:00:01]} 40. Bf3 {[%emt 0:00:47]} Rd4 {[%emt 0:00:55]} 41. Qc2 {[%emt 0:00:31]} Qe7 {[%emt 0:01:17]} 42. Rxe5 {[%emt 0:00:52]} Qxe5+ {[%emt 0:00:03]} 43. Kg2 {[%emt 0:00:03]} Rd6 {[%emt 0:00:34]} 44. Bb2 {[%emt 0:00:54]} Rg6+ {[%emt 0:00:10]} 45. Kf1 {[%emt 0:00:06]} Qh2 {[%emt 0:00:52]} 46. Qd3 {[%emt 0:01:18]} Qg1+ {[%emt 0:00:23]} 47. Ke2 {[%emt 0:00:03]} Re6+ {[%emt 0:00:18]} 48. Kd2 {[%emt 0:00:10]} Qxf2+ {[%emt 0:00:27]} 49. Be2 {[%emt 0:00:03]} Qf4+ {[%emt 0:00:19]} 50. Ke1 {[%emt 0:00:34]} Rd6 {[%emt 0:01:15]} 51. Qc3 {[%emt 0:00:29]} Rd4 {[%emt 0:00:25]} 52. Bc1 {[%emt 0:00:29]} Qh4+ {[%emt 0:00:47]} 53. Kf1 {[%emt 0:00:00]} f4 {[%emt 0:00:21]} 54. Bf3 {[%emt 0:01:51]} Qxh3+ {[%emt 0:00:33]} 55. Kf2 {[%emt 0:00:41]} Qg3+ {[%emt 0:00:18]} 56. Ke2 {[%emt 0:00:10]} Qh2+ {[%emt 0:00:09]} 57. Ke1 {[%emt 0:00:13]} Bh3 {[%emt 0:00:51]} 58. Be3 {[%emt 0:01:17]} fxe3 {[%emt 0:00:42]} 59. Qxe3 {[%emt 0:00:03]} Qg3+ {[%emt 0:00:14]} 60. Ke2 {[%emt 0:00:02]} Bf1+ {[%emt 0:00:32]} 61. Kxf1 {[%emt 0:00:24]} Rd1+ {[%emt 0:00:12]} 0-1

[Event "7th Uppsala Young Champions"]
[Site "Uppsala"]
[Date "2020.10.27"]
[Round "7.15"]
[White "Rozman, Monika"]
[Black "Hrescak, Ivana"]
[Result "1-0"]
[ECO "B21"]
[WhiteElo "2129"]
[BlackElo "2237"]
[Annotator "ChessBase"]
[PlyCount "63"]
[EventDate "2020.10.23"]
[EventType "swiss"]
[EventCountry "SWE"]
[SourceTitle "playchess.com"]
[Source "ChessBase"]
[SourceQuality "1"]
[TimeControl "5400+30"]

1. e4 {[%emt 0:00:00]} g6 {[%emt 0:00:00]} 2. f4 {[%emt 0:01:06]} Bg7 {[%emt 0:00:00]} 3. Nf3 {[%emt 0:00:27]} c5 {[%emt 0:01:45]} 4. d3 {[%emt 0:01:10]} d6 {[%emt 0:02:22]} 5. g3 {[%emt 0:00:53]} e6 {[%emt 0:00:51]} 6. Bg2 {[%emt 0:00:38]} Ne7 {[%emt 0:00:06]} 7. O-O {[%emt 0:00:23]} O-O {[%emt 0:00:22]} 8. Na3 {[%emt 0:05:17]} a6 {[%emt 0:04:22]} 9. Nh4 {[%emt 0:02:22]} Nbc6 {[%emt 0:01:20]} 10. c3 {[%emt 0:01:10]} d5 {[%emt 0:07:10]} 11. Nc2 {[%emt 0:05:39]} f5 {[%emt 0:07:27]} 12. e5 {[%emt 0:09:56]} Rb8 {[%emt 0:04:40]} 13. Nf3 {[%emt 0:04:16]} b5 {[%emt 0:06:14]} 14. Be3 {[%emt 0:00:35]} c4 {[%emt 0:00:31]} 15. Bc5 {[%emt 0:01:32]} Re8 {[%emt 0:03:55]} 16. Rf2 {[%emt 0:03:17]} Bd7 {[%emt 0:01:49]} 17. Ne3 {[%emt 0:03:47]} h6 {[%emt 0:07:01]} 18. Rd2 {[%emt 0:06:17]} Rb7 {[%emt 0:05:45]} 19. Nh4 {[%emt 0:01:28]} g5 {[%emt 0:08:21]} 20. Nhxf5 {[%emt 0:02:40]} exf5 {[%emt 0:05:35]} 21. dxc4 {[%emt 0:04:03]} bxc4 {[%emt 0:06:24]} 22. Nxd5 {[%emt 0:00:46]} Qa5 {[%emt 0:05:51]} 23. Bf2 {[%emt 0:03:28]} Nxd5 {[%emt 0:07:28]} 24. Rxd5 {[%emt 0:04:55]} Qd8 {[%emt 0:02:04]} 25. Rd6 {[%emt 0:00:39]} Qc8 {[%emt 0:00:45]} 26. Qd5+ {[%emt 0:02:30]} Kh8 {[%emt 0:00:54]} 27. Rd1 {[%emt 0:03:01]} Be6 {[%emt 0:03:56]} 28. Qxc6 {[%emt 0:00:45]} Rxb2 {[%emt 0:00:29]} 29. Qxc8 {[%emt 0:01:04]} Rxc8 {[%emt 0:01:00]} 30. Rxe6 {[%emt 0:00:14]} Rc2 {[%emt 0:00:24]} 31. Bd4 {[%emt 0:02:32]} Rb8 {[%emt 0:00:05]} 32. Rb6 {[%emt 0:03:53]} 1-0

[Event "7th Uppsala Young Champions"]
[Site "Uppsala"]
[Date "2020.10.27"]
[Round "7.18"]
[White "Grahn, Vidar"]
[Black "Crevatin, Leo"]
[Result "0-1"]
[ECO "B10"]
[WhiteElo "1864"]
[BlackElo "2181"]
[Annotator "ChessBase"]
[PlyCount "112"]
[EventDate "2020.10.23"]
[EventType "swiss"]
[EventCountry "SWE"]
[SourceTitle "playchess.com"]
[Source "ChessBase"]
[SourceQuality "1"]
[TimeControl "5400+30"]

1. e4 {[%emt 0:00:00]} c6 {[%emt 0:00:00]} 2. d3 {[%emt 0:00:00]} d5 {[%emt 0:00:00]} 3. Nd2 {[%emt 0:00:00]} e5 {[%emt 0:00:56]} 4. Ngf3 {[%emt 0:00:00]} Bd6 {[%emt 0:00:05]} 5. g3 {[%emt 0:00:02]} Nf6 {[%emt 0:00:42]} 6. Bg2 {[%emt 0:00:10]} O-O {[%emt 0:00:56]} 7. O-O {[%emt 0:00:14]} Re8 {[%emt 0:04:46]} 8. Re1 {[%emt 0:00:13]} Nbd7 {[%emt 0:01:08]} 9. b3 {[%emt 0:00:31]} a5 {[%emt 0:02:22]} 10. a3 {[%emt 0:00:14]} Nf8 {[%emt 0:04:13]} 11. Bb2 {[%emt 0:00:24]} Ng6 {[%emt 0:01:30]} 12. d4 {[%emt 0:01:37]} Bg4 {[%emt 0:13:38]} 13. dxe5 {[%emt 0:10:30]} Bxe5 {[%emt 0:02:22]} 14. Bxe5 {[%emt 0:00:26]} Nxe5 {[%emt 0:01:01]} 15. exd5 {[%emt 0:02:14]} Nxd5 {[%emt 0:03:42]} 16. c4 {[%emt 0:02:23]} Nc3 {[%emt 0:10:59]} 17. Qc2 {[%emt 0:02:03]} Qd3 {[%emt 0:06:42]} 18. Qxd3 {[%emt 0:05:00]} Nxd3 {[%emt 0:00:05]} 19. Rxe8+ {[%emt 0:00:55]} Rxe8 {[%emt 0:00:02]} 20. Kf1 {[%emt 0:01:33]} Re2 {[%emt 0:02:42]} 21. Kg1 {[%emt 0:03:35]} Rxf2 {[%emt 0:04:36]} 22. Rf1 {[%emt 0:02:27]} Re2 {[%emt 0:05:52]} 23. Nb1 {[%emt 0:03:10]} Nxb1 {[%emt 0:01:59]} 24. Rxb1 {[%emt 0:00:16]} Rb2 {[%emt 0:00:41]} 25. Rxb2 {[%emt 0:02:12]} Nxb2 {[%emt 0:00:07]} 26. Nd2 {[%emt 0:00:49]} Be6 {[%emt 0:00:52]} 27. Bf1 {[%emt 0:01:40]} Nd1 {[%emt 0:05:34]} 28. Be2 {[%emt 0:01:45]} Ne3 {[%emt 0:00:39]} 29. Kf2 {[%emt 0:01:45]} Nc2 {[%emt 0:00:29]} 30. Nb1 {[%emt 0:02:20]} Nd4 {[%emt 0:03:08]} 31. Nd2 {[%emt 0:01:27]} c5 {[%emt 0:00:47]} 32. Ke3 {[%emt 0:05:59]} Nxe2 {[%emt 0:01:36]} 33. Kxe2 {[%emt 0:00:17]} Bf5 {[%emt 0:00:59]} 34. Kd1 {[%emt 0:01:29]} f6 {[%emt 0:00:55]} 35. Kc1 {[%emt 0:01:23]} Kf7 {[%emt 0:00:05]} 36. Kb2 {[%emt 0:00:20]} Ke6 {[%emt 0:00:34]} 37. b4 {[%emt 0:02:27]} axb4 {[%emt 0:03:13]} 38. axb4 {[%emt 0:00:06]} cxb4 {[%emt 0:01:26]} 39. Kb3 {[%emt 0:00:05]} g5 {[%emt 0:00:36]} 40. Kxb4 {[%emt 0:00:13]} Bh3 {[%emt 0:03:10]} 41. Ne4 {[%emt 0:01:43]} Bg2 {[%emt 0:00:41]} 42. Nc5+ {[%emt 0:00:10]} Kd6 {[%emt 0:00:37]} 43. Kb5 {[%emt 0:00:52]} f5 {[%emt 0:00:32]} 44. Nd3 {[%emt 0:00:49]} Be4 {[%emt 0:00:36]} 45. Nf2 {[%emt 0:00:26]} Ke5 {[%emt 0:01:40]} 46. Kc5 {[%emt 0:01:30]} h6 {[%emt 0:01:36]} 47. Kb6 {[%emt 0:03:12]} Kd4 {[%emt 0:00:24]} 48. c5 {[%emt 0:00:38]} Bd5 {[%emt 0:00:41]} 49. Kc7 {[%emt 0:00:47]} Kxc5 {[%emt 0:00:51]} 50. Kd7 {[%emt 0:00:37]} Kd4 {[%emt 0:00:42]} 51. Ke7 {[%emt 0:00:23]} Bf3 {[%emt 0:00:09]} 52. h4 {[%emt 0:00:53]} g4 {[%emt 0:00:58]} 53. h5 {[%emt 0:00:36]} b5 {[%emt 0:00:21]} 54. Kf6 {[%emt 0:00:44]} b4 {[%emt 0:00:04]} 55. Kg6 {[%emt 0:00:07]} b3 {[%emt 0:00:04]} 56. Kxh6 {[%emt 0:00:21]} b2 {[%emt 0:00:02]} 0-1

[Event "7th Uppsala Young Champions"]
[Site "Uppsala"]
[Date "2020.10.27"]
[Round "7.19"]
[White "Ruzic, Pia Marie"]
[Black "Ostensson, Julia"]
[Result "1-0"]
[ECO "A16"]
[WhiteElo "1929"]
[BlackElo "1562"]
[Annotator "NA"]
[PlyCount "93"]
[EventDate "2020.10.23"]
[EventType "swiss"]
[EventCountry "SWE"]
[SourceTitle "playchess.com"]
[Source "ChessBase"]
[SourceQuality "1"]
[TimeControl "5400+30"]

1. c4 {[%emt 0:00:00]} g6 {[%emt 0:00:00]} 2. Nf3 {[%emt 0:00:09]} Nf6 {[%emt 0:00:20]} 3. Nc3 {[%emt 0:00:09]} Bg7 {[%emt 0:00:11]} 4. g3 {[%emt 0:00:30]} O-O {[%emt 0:00:21]} 5. Bg2 {[%emt 0:00:06]} d6 {[%emt 0:01:12]} 6. O-O {[%emt 0:00:12]} Nc6 {[%emt 0:01:13]} 7. d3 {[%emt 0:00:29] 7.d4 is more fashionable.} Nh5 {[%emt 0:01:03]} 8. Rb1 {[%emt 0:02:07]} f5 {[%emt 0:02:50]} 9. Nd5 {[%emt 0:09:58] A16: English Opening: 1...Nf6 with ...d5.} h6 {[%emt 0:22:27]} (9... a5 $11) 10. b4 {[%emt 0:08:10]} e5 {[%emt 0:06:35]} 11. b5 {[%emt 0:03:19]} Ne7 {[%emt 0:01:13]} 12. Nd2 {[%emt 0:00:45]} f4 {[%emt 0:03:30]} 13. Nxe7+ {[%emt 0:05:34]} Qxe7 {[%emt 0:00:08]} 14. Ne4 {[%emt 0:00:05] [#]} Be6 $146 {[%emt 0:24:56]} ({Predecessor:} 14... g5 15. Bd2 Nf6 16. Bb4 Nxe4 17. Bxe4 Bh3 18. Bg2 Bxg2 19. Kxg2 e4 20. Qc2 f3+ 21. exf3 exf3+ {0-1 (29) Pupak,T (2016)-Hanko,P (2141) Slovakia 2014}) 15. Ba3 {[%emt 0:11:31]} Nf6 {[%emt 0:17:37]} (15... a6 $11) 16. Nxf6+ {[%emt 0:00:48] Discovered Attack} Rxf6 {[%emt 0:01:30]} 17. Bxb7 {[%emt 0:00:15]} Raf8 {[%emt 0:00:52]} 18. Bg2 {[%emt 0:00:18]} Qf7 {[%emt 0:03:14]} (18... Bg4 $16) 19. Rc1 {[%emt 0:05:52]} ({White should try} 19. Qa4 $18) 19... Rd8 {[%emt 0:06:14]} ({Black should try} 19... h5 $14) 20. Bb2 {[%emt 0:02:17]} Rf5 {[%emt 0:03:58]} (20... fxg3 $142 21. fxg3 (21. hxg3 Rf8 $16) 21... Rxf1+ 22. Qxf1 Bf6) 21. e4 {[%emt 0:04:20]} (21. Qa4 $18 {has better winning chances.}) 21... Rh5 {[%emt 0:00:34]} ({Black should play} 21... Rf6) 22. h4 {[%emt 0:01:36]} g5 $18 {[%emt 0:00:21]} (22... Bf6 $16 {was worth a try.} 23. c5 Rb8 24. cxd6 cxd6) 23. Bf3 {[%emt 0:00:21]} g4 {[%emt 0:00:24]} 24. Bxg4 {[%emt 0:00:07]} Bxg4 {[%emt 0:00:22]} 25. Qxg4 {[%emt 0:00:06]} Kh7 {[%emt 0:00:46]} 26. c5 {[%emt 0:12:09]} Bf6 {[%emt 0:00:09]} 27. cxd6 {[%emt 0:00:25]} cxd6 {[%emt 0:00:13]} 28. Rc7 {[%emt 0:00:58]} Qxc7 {[%emt 0:00:38]} 29. Qxh5 {[%emt 0:00:06]} Qg7 {[%emt 0:00:42]} 30. Kh2 {[%emt 0:01:20]} Rg8 {[%emt 0:00:15]} 31. Rg1 {[%emt 0:00:52]} f3 {[%emt 0:01:08]} 32. Rc1 {[%emt 0:02:26]} Bd8 {[%emt 0:00:32]} 33. d4 {[%emt 0:04:52]} exd4 {[%emt 0:00:26]} 34. Qxf3 {[%emt 0:00:22]} Rf8 {[%emt 0:00:05]} 35. Qg2 {[%emt 0:00:56]} Bb6 {[%emt 0:00:58]} 36. f4 {[%emt 0:02:35]} Qg4 {[%emt 0:00:31]} 37. a4 {[%emt 0:01:34]} Rg8 {[%emt 0:00:27]} 38. a5 {[%emt 0:01:39]} Bxa5 {[%emt 0:00:26]} 39. Bxd4 {[%emt 0:00:07]} Bd2 {[%emt 0:00:12]} 40. Rc7+ {[%emt 0:00:14]} Kg6 {[%emt 0:00:21]} 41. Qxd2 {[%emt 0:00:13]} Kh5 {[%emt 0:01:00]} 42. Bf2 {[%emt 0:00:06]} Qf3 {[%emt 0:00:32]} 43. Qd5+ {[%emt 0:01:45]} Rg5 {[%emt 0:00:32]} 44. Qf7+ {[%emt 0:00:31]} Kg4 {[%emt 0:00:20]} 45. Qe6+ {[%emt 0:00:23]} Kh5 {[%emt 0:00:09]} 46. Rc2 {[%emt 0:00:12]} Qd1 {[%emt 0:00:55]} 47. fxg5 {[%emt 0:00:13]} 1-0

[Event "7th Uppsala Young Champions"]
[Site "Uppsala"]
[Date "2020.10.27"]
[Round "7.20"]
[White "Skahlberg Bjerknes-Lima de Far, Warg"]
[Black "Buchert, Matthaus"]
[Result "1-0"]
[ECO "A25"]
[WhiteElo "1759"]
[BlackElo "1427"]
[Annotator "NA"]
[PlyCount "59"]
[EventDate "2020.10.23"]
[EventType "swiss"]
[EventCountry "SWE"]
[SourceTitle "playchess.com"]
[Source "ChessBase"]
[SourceQuality "1"]
[TimeControl "5400+30"]

1. c4 {[%emt 0:00:00]} e5 {[%emt 0:00:00]} 2. Nc3 {[%emt 0:00:00]} Nc6 {[%emt 0:00:00]} 3. g3 {[%emt 0:00:12]} f5 {[%emt 0:00:03]} 4. Bg2 {[%emt 0:00:26]} Nf6 {[%emt 0:00:22]} 5. d3 {[%emt 0:00:12]} Bb4 {[%emt 0:00:13]} 6. Bd2 {[%emt 0:01:00]} O-O {[%emt 0:02:11]} 7. Nf3 {[%emt 0:05:29]} d6 {[%emt 0:01:49]} 8. a3 {[%emt 0:01:18]} Bxc3 {[%emt 0:00:58]} 9. Bxc3 {[%emt 0:00:02]} Qe8 {[%emt 0:02:58]} 10. O-O {[%emt 0:01:55]} Qh5 {[%emt 0:02:40]} 11. b4 {[%emt 0:08:01]} f4 {[%emt 0:08:13]} 12. b5 {[%emt 0:10:14]} Ne7 {[%emt 0:00:39]} 13. c5 {[%emt 0:00:33]} Kh8 {[%emt 0:16:04]} 14. cxd6 {[%emt 0:22:34]} Ng6 {[%emt 0:15:44]} 15. Bb4 {[%emt 0:11:28]} cxd6 {[%emt 0:11:30]} 16. Qc2 {[%emt 0:04:56]} Nd5 {[%emt 0:23:29]} 17. Bxd6 {[%emt 0:11:58]} Rd8 {[%emt 0:02:12]} 18. Bc7 {[%emt 0:11:05]} Rd7 {[%emt 0:00:43]} 19. Ba5 {[%emt 0:00:24]} b6 {[%emt 0:00:21]} 20. Bd2 {[%emt 0:03:03]} Rc7 {[%emt 0:00:54]} 21. Qb2 {[%emt 0:00:19]} Bb7 {[%emt 0:03:33]} 22. Rfc1 {[%emt 0:00:18]} Re7 {[%emt 0:01:07]} 23. Rc4 {[%emt 0:01:30]} Nf6 {[%emt 0:02:05]} 24. Rac1 {[%emt 0:01:33]} e4 {[%emt 0:01:51]} 25. dxe4 {[%emt 0:01:00]} Nxe4 {[%emt 0:00:35]} 26. Bb4 {[%emt 0:01:33]} Qxb5 {[%emt 0:00:52]} 27. a4 {[%emt 0:00:57]} Qd7 {[%emt 0:00:55]} 28. Bxe7 {[%emt 0:00:24]} Qxe7 {[%emt 0:00:08]} 29. Rc7 {[%emt 0:00:28]} Qa3 {[%emt 0:01:48]} 30. Qxg7# {[%emt 0:00:20]} 1-0